[Event "Titled Tuesday Blitz January 03 Late 2023"]
[White "Defend, Balint"]
[Black "Rego, Vinicius V. de Almeida"]
[WhiteFideId "17004853"]
[BlackFideId "2106485"]
[WhiteElo "1673"]
[BlackElo "2238"]
[Result "0-1"]
[Round "05"]
[TimeControl "180+2"]
[Date "2023.01.03"]
[WhiteClock "0:00:31"]
[BlackClock "0:00:06"]

1. e4 {[%clk 0:02:55]}  c5 {[%clk 0:02:59]} 2. Nf3 {[%clk 0:02:50]}  d6 {[%clk 0:02:59]} 3. c3 {[%clk 0:02:48]}  Nf6 {[%clk 0:02:58]} 4. Bd3 {[%clk 0:02:46]}  Nc6 {[%clk 0:02:57]} 5. h3 {[%clk 0:02:46]}  d5 {[%clk 0:02:56]} 6. e5 {[%clk 0:02:46]}  c4 {[%clk 0:02:57]} 7. exf6 {[%clk 0:02:42]}  cxd3 {[%clk 0:02:58]} 8. fxg7 {[%clk 0:02:40]}  Bxg7 {[%clk 0:02:57]} 9. O-O {[%clk 0:02:41]}  e5 {[%clk 0:02:56]} 10. Re1 {[%clk 0:02:33]}  O-O {[%clk 0:02:52]} 11. b3 {[%clk 0:02:24]}  e4 {[%clk 0:02:52]} 12. Nh2 {[%clk 0:02:24]}  Qg5 {[%clk 0:02:36]} 13. Re3 {[%clk 0:02:09]}  Be5 {[%clk 0:02:32]} 14. Ba3 {[%clk 0:02:05]}  Re8 {[%clk 0:02:01]} 15. Qe1 {[%clk 0:01:41]}  Bf4 {[%clk 0:01:54]} 16. Rg3 {[%clk 0:01:40]}  Bxg3 {[%clk 0:01:51]} 17. fxg3 {[%clk 0:01:41]}  Bd7 {[%clk 0:01:29]} 18. Nf1 {[%clk 0:01:40]}  b5 {[%clk 0:00:56]} 19. Bd6 {[%clk 0:01:40]}  Ne5 {[%clk 0:00:44]} 20. Ne3 {[%clk 0:01:36]}  Re6 {[%clk 0:00:41]} 21. Bc5 {[%clk 0:01:32]}  Bc6 {[%clk 0:00:34]} 22. Bd4 {[%clk 0:01:26]}  f5 {[%clk 0:00:33]} 23. c4 {[%clk 0:01:18]}  bxc4 {[%clk 0:00:30]} 24. Nc3 {[%clk 0:01:18]}  f4 {[%clk 0:00:30]} 25. gxf4 {[%clk 0:01:17]}  Qxf4 {[%clk 0:00:20]} 26. Ncxd5 {[%clk 0:01:17]}  Bxd5 {[%clk 0:00:12]} 27. Nxd5 {[%clk 0:01:17]}  Qg5 {[%clk 0:00:11]} 28. Be3 {[%clk 0:01:08]}  Nf3+ {[%clk 0:00:08]} 29. Kh1 {[%clk 0:01:07]}  Nxe1 {[%clk 0:00:06]} 30. Bxg5 {[%clk 0:01:07]}  Nc2 {[%clk 0:00:06]} 31. Rf1 {[%clk 0:01:06]}  Rf8 {[%clk 0:00:04]} 32. Rg1 {[%clk 0:00:54]}  Re5 {[%clk 0:00:04]} 33. Nf6+ {[%clk 0:00:52]}  Kg7 {[%clk 0:00:04]} 34. Nh5+ {[%clk 0:00:52]}  Kg6 {[%clk 0:00:04]} 35. h4 {[%clk 0:00:45]}  Kxh5 {[%clk 0:00:03]} 36. g4+ {[%clk 0:00:46]}  Kg6 {[%clk 0:00:03]} 37. Be3 {[%clk 0:00:44]}  Nxe3 {[%clk 0:00:02]} 38. dxe3 {[%clk 0:00:45]}  Kg7 {[%clk 0:00:03]} 39. bxc4 {[%clk 0:00:43]}  Rf3 {[%clk 0:00:04]} 40. c5 {[%clk 0:00:42]}  Rxe3 {[%clk 0:00:04]} 41. c6 {[%clk 0:00:42]}  Rc5 {[%clk 0:00:04]} 42. Rb1 {[%clk 0:00:40]}  Rxc6 {[%clk 0:00:04]} 43. Rb7+ {[%clk 0:00:40]}  Kf6 {[%clk 0:00:04]} 44. g5+ {[%clk 0:00:40]}  Kf5 {[%clk 0:00:05]} 45. Rb1 {[%clk 0:00:37]}  Re2 {[%clk 0:00:05]} 46. a4 {[%clk 0:00:37]}  Rcc2 {[%clk 0:00:05]} 47. h5 {[%clk 0:00:37]}  Kxg5 {[%clk 0:00:04]} 48. h6 {[%clk 0:00:38]}  Kh4 {[%clk 0:00:04]} 49. a5 {[%clk 0:00:37]}  Kh3 {[%clk 0:00:05]} 50. Kg1 {[%clk 0:00:31]}  Rh2 {[%clk 0:00:06]} 0-1


[Site "https://www.chess.com"]

[Event "Titled Tuesday Blitz January 03 Late 2023"]
[White "Girsh, Daniel"]
[Black "Rian, Kapriaga"]
[WhiteFideId "30949190"]
[BlackFideId "7103263"]
[WhiteElo "2123"]
[BlackElo "2089"]
[Result "0-1"]
[Round "05"]
[TimeControl "180+2"]
[Date "2023.01.03"]
[WhiteClock "0:00:18"]
[BlackClock "0:00:12"]

1. d4 {[%clk 0:03:00]}  Nf6 {[%clk 0:02:55]} 2. Bf4 {[%clk 0:03:01]}  d5 {[%clk 0:02:54]} 3. e3 {[%clk 0:03:01]}  e6 {[%clk 0:02:54]} 4. Nf3 {[%clk 0:03:00]}  Bd6 {[%clk 0:02:54]} 5. Bg3 {[%clk 0:03:00]}  O-O {[%clk 0:02:54]} 6. Nbd2 {[%clk 0:02:59]}  c5 {[%clk 0:02:54]} 7. c3 {[%clk 0:02:56]}  Qc7 {[%clk 0:02:53]} 8. Bd3 {[%clk 0:02:55]}  Nbd7 {[%clk 0:02:53]} 9. Bxd6 {[%clk 0:02:45]}  Qxd6 {[%clk 0:02:53]} 10. dxc5 {[%clk 0:02:44]}  Nxc5 {[%clk 0:02:52]} 11. Bc2 {[%clk 0:02:43]}  b6 {[%clk 0:02:51]} 12. O-O {[%clk 0:02:40]}  Ba6 {[%clk 0:02:50]} 13. Re1 {[%clk 0:02:38]}  Bd3 {[%clk 0:02:40]} 14. Nb3 {[%clk 0:02:36]}  Bxc2 {[%clk 0:02:39]} 15. Qxc2 {[%clk 0:02:35]}  Rac8 {[%clk 0:02:37]} 16. Rad1 {[%clk 0:02:21]}  Rfd8 {[%clk 0:02:36]} 17. Nbd4 {[%clk 0:02:18]}  a6 {[%clk 0:02:33]} 18. h4 {[%clk 0:02:11]}  h6 {[%clk 0:02:31]} 19. Nd2 {[%clk 0:02:07]}  b5 {[%clk 0:02:29]} 20. Qb1 {[%clk 0:02:07]}  Ng4 {[%clk 0:02:18]} 21. g3 {[%clk 0:02:03]}  Ne5 {[%clk 0:02:18]} 22. Kg2 {[%clk 0:01:58]}  Qe7 {[%clk 0:02:07]} 23. N2f3 {[%clk 0:01:57]}  Nxf3 {[%clk 0:02:03]} 24. Nxf3 {[%clk 0:01:58]}  Qf6 {[%clk 0:02:01]} 25. Nd2 {[%clk 0:01:54]}  a5 {[%clk 0:01:55]} 26. e4 {[%clk 0:01:52]}  Qg6 {[%clk 0:01:32]} 27. exd5 {[%clk 0:01:45]}  Nd3 {[%clk 0:01:25]} 28. Re3 {[%clk 0:01:45]}  Rxd5 {[%clk 0:01:25]} 29. Nf3 {[%clk 0:01:39]}  Rcd8 {[%clk 0:01:22]} 30. Nd4 {[%clk 0:01:07]}  Nf4+ {[%clk 0:01:01]} 31. Kh2 {[%clk 0:01:06]}  Qg4 {[%clk 0:00:53]} 32. gxf4 {[%clk 0:00:55]}  Qxf4+ {[%clk 0:00:42]} 33. Rg3 {[%clk 0:00:47]}  e5 {[%clk 0:00:28]} 34. Rg1 {[%clk 0:00:39]}  Qxh4+ {[%clk 0:00:22]} 35. Rh3 {[%clk 0:00:37]}  Qxf2+ {[%clk 0:00:21]} 36. Rg2 {[%clk 0:00:38]}  Qf4+ {[%clk 0:00:20]} 37. Rhg3 {[%clk 0:00:33]}  exd4 {[%clk 0:00:21]} 38. Kg1 {[%clk 0:00:31]}  Rg5 {[%clk 0:00:19]} 39. Rxg5 {[%clk 0:00:24]}  hxg5 {[%clk 0:00:19]} 40. Qd1 {[%clk 0:00:20]}  d3 {[%clk 0:00:18]} 41. Rf2 {[%clk 0:00:17]}  Qe3 {[%clk 0:00:18]} 42. Kg2 {[%clk 0:00:15]}  d2 {[%clk 0:00:18]} 43. Qb3 {[%clk 0:00:13]}  Rd7 {[%clk 0:00:15]} 44. Rf1 {[%clk 0:00:07]}  Qe2+ {[%clk 0:00:13]} 45. Rf2 {[%clk 0:00:07]}  Qxf2+ {[%clk 0:00:13]} 46. Kxf2 {[%clk 0:00:07]}  d1=Q {[%clk 0:00:12]} 47. Qxb5 {[%clk 0:00:08]}  Qd2+ {[%clk 0:00:11]} 48. Kf1 {[%clk 0:00:08]}  Qd3+ {[%clk 0:00:11]} 49. Qxd3 {[%clk 0:00:08]}  Rxd3 {[%clk 0:00:11]} 50. Ke2 {[%clk 0:00:09]}  Rd5 {[%clk 0:00:11]} 51. c4 {[%clk 0:00:10]}  Rd8 {[%clk 0:00:11]} 52. c5 {[%clk 0:00:10]}  Rc8 {[%clk 0:00:10]} 53. a3 {[%clk 0:00:10]}  Rxc5 {[%clk 0:00:11]} 54. Kd3 {[%clk 0:00:11]}  Rc8 {[%clk 0:00:10]} 55. b4 {[%clk 0:00:11]}  axb4 {[%clk 0:00:10]} 56. axb4 {[%clk 0:00:12]}  f5 {[%clk 0:00:11]} 57. Kd4 {[%clk 0:00:12]}  g4 {[%clk 0:00:11]} 58. Ke5 {[%clk 0:00:13]}  g3 {[%clk 0:00:11]} 59. Kxf5 {[%clk 0:00:14]}  g2 {[%clk 0:00:11]} 60. b5 {[%clk 0:00:13]}  g1=Q {[%clk 0:00:10]} 61. b6 {[%clk 0:00:14]}  Qxb6 {[%clk 0:00:10]} 62. Kg5 {[%clk 0:00:15]}  Rc5+ {[%clk 0:00:10]} 63. Kf4 {[%clk 0:00:15]}  Qb4+ {[%clk 0:00:11]} 64. Ke3 {[%clk 0:00:16]}  Rc3+ {[%clk 0:00:11]} 65. Kd2 {[%clk 0:00:17]}  Qb2+ {[%clk 0:00:12]} 66. Kd1 {[%clk 0:00:18]}  Rc1# {[%clk 0:00:12]} 0-1


[Site "https://www.chess.com"]

[Event "Titled Tuesday Blitz January 03 Late 2023"]
[White "Fisher_TheGalactic"]
[Black "Ankerst, Mihael"]
[BlackFideId "14602369"]
[WhiteElo "2492"]
[BlackElo "2370"]
[Result "1-0"]
[Round "05"]
[TimeControl "180+2"]
[Date "2023.01.03"]
[WhiteClock "0:00:50"]
[BlackClock "0:00:02"]

1. Nf3 {[%clk 0:03:00]}  Nf6 {[%clk 0:02:56]} 2. g3 {[%clk 0:03:01]}  g6 {[%clk 0:02:56]} 3. Bg2 {[%clk 0:03:01]}  Bg7 {[%clk 0:02:57]} 4. O-O {[%clk 0:03:01]}  d6 {[%clk 0:02:57]} 5. d3 {[%clk 0:03:02]}  O-O {[%clk 0:02:57]} 6. e4 {[%clk 0:03:02]}  e5 {[%clk 0:02:52]} 7. Nbd2 {[%clk 0:03:01]}  Nbd7 {[%clk 0:02:51]} 8. c3 {[%clk 0:02:58]}  Nc5 {[%clk 0:02:46]} 9. Qc2 {[%clk 0:02:54]}  a5 {[%clk 0:02:43]} 10. d4 {[%clk 0:02:54]}  Ncd7 {[%clk 0:02:40]} 11. dxe5 {[%clk 0:02:53]}  Nxe5 {[%clk 0:02:34]} 12. Nxe5 {[%clk 0:02:52]}  dxe5 {[%clk 0:02:35]} 13. Nc4 {[%clk 0:02:51]}  Qe7 {[%clk 0:02:34]} 14. b3 {[%clk 0:02:51]}  Rd8 {[%clk 0:02:31]} 15. Ba3 {[%clk 0:02:51]}  Qe8 {[%clk 0:02:31]} 16. Rad1 {[%clk 0:02:51]}  Rxd1 {[%clk 0:01:53]} 17. Rxd1 {[%clk 0:02:52]}  Bg4 {[%clk 0:01:45]} 18. f3 {[%clk 0:02:50]}  Bd7 {[%clk 0:01:40]} 19. Ne3 {[%clk 0:02:48]}  c6 {[%clk 0:01:40]} 20. Bf1 {[%clk 0:02:45]}  b5 {[%clk 0:01:40]} 21. Bc5 {[%clk 0:02:41]}  Be6 {[%clk 0:01:39]} 22. Qd2 {[%clk 0:02:34]}  Bf8 {[%clk 0:01:38]} 23. Bxf8 {[%clk 0:02:32]}  Qxf8 {[%clk 0:01:38]} 24. Qd6 {[%clk 0:02:32]}  Qxd6 {[%clk 0:01:37]} 25. Rxd6 {[%clk 0:02:33]}  Rc8 {[%clk 0:01:37]} 26. c4 {[%clk 0:02:28]}  b4 {[%clk 0:01:28]} 27. c5 {[%clk 0:02:26]}  Nd7 {[%clk 0:01:21]} 28. Nc4 {[%clk 0:02:22]}  a4 {[%clk 0:00:36]} 29. Nb6 {[%clk 0:02:04]}  Nxb6 {[%clk 0:00:29]} 30. cxb6 {[%clk 0:02:05]}  axb3 {[%clk 0:00:29]} 31. axb3 {[%clk 0:02:05]}  Bxb3 {[%clk 0:00:29]} 32. b7 {[%clk 0:01:52]}  Rb8 {[%clk 0:00:29]} 33. Ba6 {[%clk 0:01:53]}  Ba4 {[%clk 0:00:22]} 34. Rd7 {[%clk 0:01:21]}  b3 {[%clk 0:00:22]} 35. Rc7 {[%clk 0:01:14]}  b2 {[%clk 0:00:22]} 36. Bd3 {[%clk 0:01:14]}  Kg7 {[%clk 0:00:22]} 37. Kf2 {[%clk 0:01:07]}  Bb5 {[%clk 0:00:08]} 38. Bb1 {[%clk 0:01:05]}  Kf6 {[%clk 0:00:09]} 39. Ke3 {[%clk 0:01:05]}  Ke6 {[%clk 0:00:09]} 40. Kd2 {[%clk 0:00:59]}  Ba4 {[%clk 0:00:06]} 41. Kc3 {[%clk 0:00:58]}  h5 {[%clk 0:00:01]} 42. Kxb2 {[%clk 0:00:58]}  f6 {[%clk 0:00:02]} 43. Rg7 {[%clk 0:00:57]}  g5 {[%clk 0:00:02]} 44. Kc3 {[%clk 0:00:56]}  Kd6 {[%clk 0:00:02]} 45. Kb4 {[%clk 0:00:50]}  Bb5 {[%clk 0:00:02]} 46. Ka5 {[%clk 0:00:50]} 1-0


[Site "https://www.chess.com"]

[Event "Titled Tuesday Blitz January 03 Late 2023"]
[White "Alexikov, Alexander"]
[Black "Bochnicka, Vladimir"]
[WhiteFideId "14103958"]
[BlackFideId "14943450"]
[WhiteElo "2209"]
[BlackElo "2327"]
[Result "0-1"]
[Round "05"]
[TimeControl "180+2"]
[Date "2023.01.03"]
[WhiteClock "0:00:01"]
[BlackClock "0:00:06"]

1. e4 {[%clk 0:03:00]}  c5 {[%clk 0:02:59]} 2. Nf3 {[%clk 0:03:00]}  Nc6 {[%clk 0:02:59]} 3. d4 {[%clk 0:03:00]}  cxd4 {[%clk 0:03:00]} 4. Nxd4 {[%clk 0:02:59]}  e5 {[%clk 0:03:00]} 5. Nb5 {[%clk 0:02:58]}  d6 {[%clk 0:02:59]} 6. c4 {[%clk 0:02:57]}  Be7 {[%clk 0:02:58]} 7. N1c3 {[%clk 0:02:51]}  a6 {[%clk 0:02:58]} 8. Na3 {[%clk 0:02:51]}  f5 {[%clk 0:02:58]} 9. exf5 {[%clk 0:02:50]}  Bxf5 {[%clk 0:02:59]} 10. Bd3 {[%clk 0:02:48]}  Be6 {[%clk 0:02:58]} 11. O-O {[%clk 0:02:42]}  Nf6 {[%clk 0:02:58]} 12. Bg5 {[%clk 0:02:28]}  O-O {[%clk 0:02:57]} 13. Nc2 {[%clk 0:02:24]}  Kh8 {[%clk 0:02:50]} 14. b3 {[%clk 0:02:21]}  Qd7 {[%clk 0:02:48]} 15. Qd2 {[%clk 0:02:19]}  Rae8 {[%clk 0:02:47]} 16. Rad1 {[%clk 0:02:17]}  Bd8 {[%clk 0:02:05]} 17. Kh1 {[%clk 0:02:03]}  Bb6 {[%clk 0:02:01]} 18. f3 {[%clk 0:01:54]}  Nh5 {[%clk 0:01:45]} 19. Be3 {[%clk 0:01:50]}  Bxe3 {[%clk 0:01:41]} 20. Qxe3 {[%clk 0:01:46]}  Qe7 {[%clk 0:01:35]} 21. g3 {[%clk 0:01:33]}  Rf6 {[%clk 0:01:29]} 22. Ne4 {[%clk 0:01:27]}  Rh6 {[%clk 0:01:22]} 23. Kg1 {[%clk 0:01:27]}  Rf8 {[%clk 0:01:00]} 24. Qg5 {[%clk 0:01:24]}  Qc7 {[%clk 0:00:44]} 25. Rf2 {[%clk 0:01:07]}  Rf5 {[%clk 0:00:41]} 26. Qe3 {[%clk 0:01:04]}  Nf6 {[%clk 0:00:26]} 27. Nxd6 {[%clk 0:01:03]}  Qxd6 {[%clk 0:00:20]} 28. Rfd2 {[%clk 0:01:01]}  Rfh5 {[%clk 0:00:18]} 29. Bg6 {[%clk 0:00:58]}  Qe7 {[%clk 0:00:17]} 30. Bxh5 {[%clk 0:00:57]}  Rxh5 {[%clk 0:00:16]} 31. Rd6 {[%clk 0:00:47]}  h6 {[%clk 0:00:16]} 32. c5 {[%clk 0:00:40]}  e4 {[%clk 0:00:15]} 33. b4 {[%clk 0:00:28]}  Nd5 {[%clk 0:00:15]} 34. Qxe4 {[%clk 0:00:26]}  Re5 {[%clk 0:00:14]} 35. Qc4 {[%clk 0:00:14]}  Ne3 {[%clk 0:00:12]} 36. Rxe6 {[%clk 0:00:14]}  Rxe6 {[%clk 0:00:13]} 37. Nxe3 {[%clk 0:00:13]}  Rxe3 {[%clk 0:00:13]} 38. Kf2 {[%clk 0:00:12]}  Re6 {[%clk 0:00:11]} 39. Rd2 {[%clk 0:00:11]}  Rf6 {[%clk 0:00:11]} 40. f4 {[%clk 0:00:06]}  Ne5 {[%clk 0:00:11]} 41. Qe2 {[%clk 0:00:04]}  Ng6 {[%clk 0:00:10]} 42. Qxe7 {[%clk 0:00:03]}  Nxe7 {[%clk 0:00:11]} 43. Rd8+ {[%clk 0:00:02]}  Kh7 {[%clk 0:00:11]} 44. Rd7 {[%clk 0:00:02]}  Nc6 {[%clk 0:00:07]} 45. Rxb7 {[%clk 0:00:02]}  Re6 {[%clk 0:00:07]} 46. a3 {[%clk 0:00:02]}  Re4 {[%clk 0:00:07]} 47. Rb6 {[%clk 0:00:02]}  Nd4 {[%clk 0:00:07]} 48. Rxa6 {[%clk 0:00:02]}  Re2+ {[%clk 0:00:07]} 49. Kg1 {[%clk 0:00:02]}  Ra2 {[%clk 0:00:07]} 50. h3 {[%clk 0:00:01]}  Nf3+ {[%clk 0:00:06]} 0-1


[Site "https://www.chess.com"]

[Event "Titled Tuesday Blitz January 03 Late 2023"]
[White "Slavin, Alexey"]
[Black "Martinez, Marcel"]
[WhiteFideId "24104388"]
[BlackFideId "2016249"]
[WhiteElo "2364"]
[BlackElo "2402"]
[Result "0-1"]
[Round "05"]
[TimeControl "180+2"]
[Date "2023.01.03"]
[WhiteClock "0:00:00"]
[BlackClock "0:00:45"]

1. e4 {[%clk 0:03:00]}  e5 {[%clk 0:02:58]} 2. Nf3 {[%clk 0:02:59]}  Nc6 {[%clk 0:02:58]} 3. c3 {[%clk 0:02:59]}  Nf6 {[%clk 0:02:56]} 4. d3 {[%clk 0:02:59]}  d5 {[%clk 0:02:55]} 5. Nbd2 {[%clk 0:02:54]}  a5 {[%clk 0:02:55]} 6. Be2 {[%clk 0:02:53]}  h6 {[%clk 0:02:52]} 7. O-O {[%clk 0:02:52]}  dxe4 {[%clk 0:02:44]} 8. Nxe4 {[%clk 0:02:47]}  Be7 {[%clk 0:02:42]} 9. Qc2 {[%clk 0:02:45]}  O-O {[%clk 0:02:41]} 10. Ng3 {[%clk 0:02:44]}  Re8 {[%clk 0:02:37]} 11. h3 {[%clk 0:02:42]}  Bc5 {[%clk 0:02:36]} 12. Ne4 {[%clk 0:02:38]}  Bb6 {[%clk 0:02:33]} 13. a3 {[%clk 0:02:36]}  a4 {[%clk 0:02:30]} 14. Bd2 {[%clk 0:02:23]}  Be6 {[%clk 0:02:29]} 15. Ng3 {[%clk 0:02:11]}  Bb3 {[%clk 0:02:27]} 16. Qc1 {[%clk 0:02:10]}  Re6 {[%clk 0:02:12]} 17. Nf5 {[%clk 0:02:06]}  Nd5 {[%clk 0:02:08]} 18. N3h4 {[%clk 0:01:37]}  Nf4 {[%clk 0:01:56]} 19. Bxf4 {[%clk 0:01:23]}  exf4 {[%clk 0:01:56]} 20. Bg4 {[%clk 0:01:19]}  Rf6 {[%clk 0:01:42]} 21. d4 {[%clk 0:01:15]}  g6 {[%clk 0:01:40]} 22. Nxh6+ {[%clk 0:01:10]}  Kg7 {[%clk 0:01:40]} 23. N6f5+ {[%clk 0:01:08]}  gxf5 {[%clk 0:01:39]} 24. Nxf5+ {[%clk 0:01:08]}  Kh8 {[%clk 0:01:32]} 25. Qxf4 {[%clk 0:01:06]}  Rg6 {[%clk 0:01:28]} 26. Rfe1 {[%clk 0:00:58]}  Be6 {[%clk 0:01:27]} 27. Rad1 {[%clk 0:00:52]}  Qg5 {[%clk 0:01:19]} 28. Qf3 {[%clk 0:00:44]}  Bxf5 {[%clk 0:01:11]} 29. Bxf5 {[%clk 0:00:40]}  Rf6 {[%clk 0:01:11]} 30. g4 {[%clk 0:00:35]}  Rg8 {[%clk 0:01:11]} 31. Kh2 {[%clk 0:00:30]}  Nd8 {[%clk 0:01:01]} 32. Re5 {[%clk 0:00:27]}  c6 {[%clk 0:00:59]} 33. Kh1 {[%clk 0:00:21]}  Bc7 {[%clk 0:00:58]} 34. Re2 {[%clk 0:00:16]}  Ne6 {[%clk 0:00:57]} 35. Rde1 {[%clk 0:00:15]}  Nf4 {[%clk 0:00:56]} 36. Re3 {[%clk 0:00:14]}  Rh6 {[%clk 0:00:55]} 37. Qe4 {[%clk 0:00:10]}  Nxh3 {[%clk 0:00:53]} 38. Kg2 {[%clk 0:00:07]}  Nf4+ {[%clk 0:00:50]} 39. Kf1 {[%clk 0:00:07]}  Nd5 {[%clk 0:00:48]} 40. Rf3 {[%clk 0:00:03]}  Nf6 {[%clk 0:00:46]} 41. Qe7 {[%clk 0:00:02]}  Rh1+ {[%clk 0:00:43]} 42. Ke2 {[%clk 0:00:01]}  Rxe1+ {[%clk 0:00:43]} 43. Kxe1 {[%clk 0:00:01]}  Re8 {[%clk 0:00:44]} 44. Qxe8+ {[%clk 0:00:00]}  Nxe8 {[%clk 0:00:45]} 0-1


[Site "https://www.chess.com"]

[Event "Titled Tuesday Blitz January 03 Late 2023"]
[White "Mesic, Ismet"]
[Black "Adury, Anant"]
[WhiteFideId "14411105"]
[BlackFideId "30964687"]
[WhiteElo "2190"]
[BlackElo "2123"]
[Result "1/2-1/2"]
[Round "05"]
[TimeControl "180+2"]
[Date "2023.01.03"]
[WhiteClock "0:00:16"]
[BlackClock "0:00:05"]

1. e4 {[%clk 0:02:55]}  d6 {[%clk 0:02:29]} 2. d4 {[%clk 0:02:54]}  Nf6 {[%clk 0:02:29]} 3. Nc3 {[%clk 0:02:52]}  e5 {[%clk 0:02:29]} 4. dxe5 {[%clk 0:02:48]}  dxe5 {[%clk 0:02:30]} 5. Qxd8+ {[%clk 0:02:48]}  Kxd8 {[%clk 0:02:31]} 6. Bc4 {[%clk 0:02:47]}  Bb4 {[%clk 0:02:29]} 7. Bg5 {[%clk 0:02:41]}  Ke7 {[%clk 0:02:24]} 8. O-O-O {[%clk 0:02:39]}  Bxc3 {[%clk 0:02:23]} 9. bxc3 {[%clk 0:02:39]}  Be6 {[%clk 0:02:22]} 10. Bxe6 {[%clk 0:02:39]}  Kxe6 {[%clk 0:02:23]} 11. f3 {[%clk 0:02:38]}  Nc6 {[%clk 0:02:21]} 12. Ne2 {[%clk 0:02:38]}  Rad8 {[%clk 0:02:20]} 13. Ng3 {[%clk 0:02:35]}  g6 {[%clk 0:01:59]} 14. Rd3 {[%clk 0:02:24]}  h6 {[%clk 0:01:50]} 15. Bxf6 {[%clk 0:02:23]}  Kxf6 {[%clk 0:01:51]} 16. Rhd1 {[%clk 0:02:23]}  Ke7 {[%clk 0:01:45]} 17. Ne2 {[%clk 0:02:18]}  Nb8 {[%clk 0:01:20]} 18. Ng3 {[%clk 0:02:09]}  Na6 {[%clk 0:01:14]} 19. Ne2 {[%clk 0:02:06]}  Rd6 {[%clk 0:01:14]} 20. Rd5 {[%clk 0:02:05]}  f6 {[%clk 0:01:12]} 21. c4 {[%clk 0:02:04]}  Rhd8 {[%clk 0:01:09]} 22. a3 {[%clk 0:02:00]}  c6 {[%clk 0:01:09]} 23. Rxd6 {[%clk 0:01:59]}  Rxd6 {[%clk 0:01:09]} 24. Rxd6 {[%clk 0:01:57]}  Kxd6 {[%clk 0:01:10]} 25. Kd2 {[%clk 0:01:55]}  Kc5 {[%clk 0:01:07]} 26. Kc3 {[%clk 0:01:55]}  Nc7 {[%clk 0:01:08]} 27. Nc1 {[%clk 0:01:53]}  Ne8 {[%clk 0:01:07]} 28. Nd3+ {[%clk 0:01:49]}  Kd6 {[%clk 0:01:07]} 29. f4 {[%clk 0:01:50]}  c5 {[%clk 0:00:54]} 30. a4 {[%clk 0:01:47]}  Nc7 {[%clk 0:00:53]} 31. g3 {[%clk 0:01:46]}  Ne6 {[%clk 0:00:52]} 32. fxe5+ {[%clk 0:01:25]}  fxe5 {[%clk 0:00:46]} 33. Kd2 {[%clk 0:01:19]}  Nd4 {[%clk 0:00:38]} 34. h3 {[%clk 0:01:11]}  Nf3+ {[%clk 0:00:36]} 35. Ke3 {[%clk 0:01:08]}  Nd4 {[%clk 0:00:30]} 36. Kd2 {[%clk 0:01:06]}  a6 {[%clk 0:00:21]} 37. Nc1 {[%clk 0:01:01]}  b6 {[%clk 0:00:16]} 38. c3 {[%clk 0:01:01]}  Nc6 {[%clk 0:00:15]} 39. Nd3 {[%clk 0:00:58]}  Na5 {[%clk 0:00:15]} 40. Nb2 {[%clk 0:00:57]}  Ke6 {[%clk 0:00:15]} 41. Ke3 {[%clk 0:00:56]}  Kf6 {[%clk 0:00:16]} 42. Kf3 {[%clk 0:00:56]}  Nb3 {[%clk 0:00:16]} 43. Ke3 {[%clk 0:00:53]}  Na5 {[%clk 0:00:16]} 44. Kf3 {[%clk 0:00:53]}  Nc6 {[%clk 0:00:16]} 45. Ke3 {[%clk 0:00:52]}  Nd8 {[%clk 0:00:16]} 46. Kf3 {[%clk 0:00:53]}  Ne6 {[%clk 0:00:17]} 47. Ke3 {[%clk 0:00:52]}  Ng5 {[%clk 0:00:17]} 48. h4 {[%clk 0:00:51]}  Ne6 {[%clk 0:00:18]} 49. Kf3 {[%clk 0:00:50]}  Nd8 {[%clk 0:00:16]} 50. Nd3 {[%clk 0:00:50]}  Nc6 {[%clk 0:00:16]} 51. Nb2 {[%clk 0:00:48]}  Ke6 {[%clk 0:00:16]} 52. Ke3 {[%clk 0:00:48]}  Na7 {[%clk 0:00:16]} 53. Nd1 {[%clk 0:00:46]}  Kd6 {[%clk 0:00:16]} 54. Nb2 {[%clk 0:00:43]}  Kc6 {[%clk 0:00:16]} 55. Kd3 {[%clk 0:00:42]}  Nc8 {[%clk 0:00:16]} 56. Nd1 {[%clk 0:00:39]}  Nd6 {[%clk 0:00:15]} 57. Ne3 {[%clk 0:00:38]}  h5 {[%clk 0:00:14]} 58. Nd5 {[%clk 0:00:32]}  b5 {[%clk 0:00:08]} 59. axb5+ {[%clk 0:00:30]}  axb5 {[%clk 0:00:09]} 60. cxb5+ {[%clk 0:00:28]}  Kxb5 {[%clk 0:00:10]} 61. Ne7 {[%clk 0:00:26]}  c4+ {[%clk 0:00:11]} 62. Ke3 {[%clk 0:00:25]}  Ka4 {[%clk 0:00:05]} 63. Nxg6 {[%clk 0:00:23]}  Nb5 {[%clk 0:00:06]} 64. Nxe5 {[%clk 0:00:22]}  Nxc3 {[%clk 0:00:07]} 65. Nxc4 {[%clk 0:00:22]}  Kb4 {[%clk 0:00:07]} 66. Ne5 {[%clk 0:00:20]}  Kc5 {[%clk 0:00:07]} 67. Kf4 {[%clk 0:00:19]}  Kd4 {[%clk 0:00:05]} 68. Nf3+ {[%clk 0:00:18]}  Kc5 {[%clk 0:00:05]} 69. e5 {[%clk 0:00:17]}  Kd5 {[%clk 0:00:05]} 70. Kf5 {[%clk 0:00:18]}  Ne4 {[%clk 0:00:05]} 71. e6 {[%clk 0:00:17]}  Nxg3+ {[%clk 0:00:05]} 72. Kf6 {[%clk 0:00:16]}  Ne4+ {[%clk 0:00:05]} 73. Kf7 {[%clk 0:00:16]}  Nd6+ {[%clk 0:00:04]} 74. Kf6 {[%clk 0:00:17]}  Ne4+ {[%clk 0:00:04]} 75. Kf7 {[%clk 0:00:15]}  Nd6+ {[%clk 0:00:05]} 76. Kf6 {[%clk 0:00:16]}  Ne4+ {[%clk 0:00:05]} 1/2-1/2


[Site "https://www.chess.com"]

[Event "Titled Tuesday Blitz January 03 Late 2023"]
[White "Pein, Jonathan"]
[Black "Jenkins, Drake"]
[WhiteFideId "417092"]
[BlackFideId "2022397"]
[WhiteElo "2265"]
[BlackElo "2130"]
[Result "1-0"]
[Round "05"]
[TimeControl "180+2"]
[Date "2023.01.03"]
[WhiteClock "0:00:53"]
[BlackClock "0:00:01"]

1. e4 {[%clk 0:02:53]}  c5 {[%clk 0:02:58]} 2. g3 {[%clk 0:02:52]}  g6 {[%clk 0:02:58]} 3. Bg2 {[%clk 0:02:53]}  Bg7 {[%clk 0:02:59]} 4. Ne2 {[%clk 0:02:53]}  Nc6 {[%clk 0:02:59]} 5. O-O {[%clk 0:02:54]}  e5 {[%clk 0:02:57]} 6. a4 {[%clk 0:02:54]}  Nge7 {[%clk 0:02:55]} 7. Nbc3 {[%clk 0:02:53]}  O-O {[%clk 0:02:54]} 8. d3 {[%clk 0:02:54]}  d6 {[%clk 0:02:47]} 9. f4 {[%clk 0:02:54]}  f5 {[%clk 0:02:39]} 10. h3 {[%clk 0:02:49]}  Be6 {[%clk 0:02:37]} 11. Nd5 {[%clk 0:02:47]}  Qd7 {[%clk 0:02:31]} 12. Kh2 {[%clk 0:02:45]}  Nd4 {[%clk 0:02:03]} 13. c3 {[%clk 0:02:40]}  Nxe2 {[%clk 0:01:55]} 14. Qxe2 {[%clk 0:02:41]}  Rae8 {[%clk 0:01:47]} 15. Be3 {[%clk 0:02:35]}  Nxd5 {[%clk 0:01:12]} 16. exd5 {[%clk 0:02:36]}  Bf7 {[%clk 0:01:12]} 17. Qf2 {[%clk 0:02:21]}  e4 {[%clk 0:01:03]} 18. dxe4 {[%clk 0:02:17]}  fxe4 {[%clk 0:01:04]} 19. Rfd1 {[%clk 0:02:15]}  b6 {[%clk 0:00:58]} 20. h4 {[%clk 0:02:09]}  Qb7 {[%clk 0:00:44]} 21. Qd2 {[%clk 0:02:03]}  a6 {[%clk 0:00:43]} 22. Kg1 {[%clk 0:01:56]}  b5 {[%clk 0:00:43]} 23. axb5 {[%clk 0:01:55]}  axb5 {[%clk 0:00:44]} 24. Ra5 {[%clk 0:01:55]}  b4 {[%clk 0:00:28]} 25. cxb4 {[%clk 0:01:46]}  Qxb4 {[%clk 0:00:28]} 26. Qxb4 {[%clk 0:01:46]}  cxb4 {[%clk 0:00:29]} 27. Bd4 {[%clk 0:01:46]}  e3 {[%clk 0:00:23]} 28. Bxg7 {[%clk 0:01:39]}  Kxg7 {[%clk 0:00:24]} 29. Re1 {[%clk 0:01:37]}  Ra8 {[%clk 0:00:15]} 30. Rxa8 {[%clk 0:01:35]}  Rxa8 {[%clk 0:00:16]} 31. Rxe3 {[%clk 0:01:35]}  Ra5 {[%clk 0:00:11]} 32. Re7 {[%clk 0:01:29]}  Kf6 {[%clk 0:00:07]} 33. Rd7 {[%clk 0:01:30]}  Ra1+ {[%clk 0:00:04]} 34. Kh2 {[%clk 0:01:23]}  Rb1 {[%clk 0:00:03]} 35. Rxd6+ {[%clk 0:01:23]}  Ke7 {[%clk 0:00:01]} 36. Rb6 {[%clk 0:01:21]}  Rxb2 {[%clk 0:00:01]} 37. d6+ {[%clk 0:01:00]}  Kf8 {[%clk 0:00:01]} 38. Rb8+ {[%clk 0:00:59]}  Kg7 {[%clk 0:00:02]} 39. Rb7 {[%clk 0:01:00]}  Kf6 {[%clk 0:00:01]} 40. d7 {[%clk 0:00:53]} 1-0


[Site "https://www.chess.com"]